[Event "Titled Tuesday Blitz March 15 Late 2022"]
[White "Weber, Samuel"]
[Black "Thavandiran, Shiyam"]
[WhiteFideId "12924008"]
[BlackFideId "2605058"]
[WhiteElo "2215"]
[BlackElo "2357"]
[Result "1-0"]
[Round "11"]
[TimeControl "180+1"]
[Date "2022.03.15"]
[WhiteClock "0:00:37"]
[BlackClock "0:00:03"]

1. e4 {[%clk 0:03:00]}  c6 {[%clk 0:01:53]} 2. d4 {[%clk 0:03:00]}  d5 {[%clk 0:01:53]} 3. e5 {[%clk 0:03:00]}  Bf5 {[%clk 0:01:47]} 4. h4 {[%clk 0:03:00]}  Qc8 {[%clk 0:01:46]} 5. Bd3 {[%clk 0:02:49]}  Bxd3 {[%clk 0:01:43]} 6. Qxd3 {[%clk 0:02:50]}  e6 {[%clk 0:01:39]} 7. Nf3 {[%clk 0:02:48]}  c5 {[%clk 0:01:38]} 8. c3 {[%clk 0:02:44]}  Nc6 {[%clk 0:01:38]} 9. Be3 {[%clk 0:02:43]}  cxd4 {[%clk 0:01:11]} 10. Bxd4 {[%clk 0:02:36]}  Nh6 {[%clk 0:01:01]} 11. Nbd2 {[%clk 0:02:24]}  Be7 {[%clk 0:00:59]} 12. Nb3 {[%clk 0:02:21]}  Nf5 {[%clk 0:00:56]} 13. g4 {[%clk 0:02:17]}  Nfxd4 {[%clk 0:00:54]} 14. Nbxd4 {[%clk 0:02:16]}  Qd7 {[%clk 0:00:53]} 15. Kf1 {[%clk 0:02:01]}  f6 {[%clk 0:00:45]} 16. Re1 {[%clk 0:01:50]}  O-O {[%clk 0:00:34]} 17. Kg2 {[%clk 0:01:39]}  Nxe5 {[%clk 0:00:24]} 18. Nxe5 {[%clk 0:01:39]}  fxe5 {[%clk 0:00:25]} 19. Rxe5 {[%clk 0:01:39]}  Bf6 {[%clk 0:00:21]} 20. Re3 {[%clk 0:01:29]}  e5 {[%clk 0:00:20]} 21. Nf5 {[%clk 0:01:16]}  e4 {[%clk 0:00:19]} 22. Qd1 {[%clk 0:01:12]}  Be5 {[%clk 0:00:18]} 23. Qxd5+ {[%clk 0:01:08]}  Qxd5 {[%clk 0:00:16]} 24. Ne7+ {[%clk 0:01:09]}  Kh8 {[%clk 0:00:16]} 25. Nxd5 {[%clk 0:01:10]}  Rae8 {[%clk 0:00:16]} 26. Rxe4 {[%clk 0:01:06]}  Bd6 {[%clk 0:00:13]} 27. Rxe8 {[%clk 0:01:04]}  Rxe8 {[%clk 0:00:14]} 28. Rd1 {[%clk 0:01:00]}  Kg8 {[%clk 0:00:13]} 29. Ne3 {[%clk 0:00:59]}  Bc5 {[%clk 0:00:13]} 30. Rd3 {[%clk 0:00:59]}  g6 {[%clk 0:00:12]} 31. b4 {[%clk 0:00:59]}  Bb6 {[%clk 0:00:11]} 32. a4 {[%clk 0:00:59]}  a5 {[%clk 0:00:10]} 33. Nd5 {[%clk 0:00:56]}  Bd8 {[%clk 0:00:10]} 34. bxa5 {[%clk 0:00:56]}  Re4 {[%clk 0:00:08]} 35. Rd4 {[%clk 0:00:52]}  Rxd4 {[%clk 0:00:08]} 36. cxd4 {[%clk 0:00:53]}  Bxh4 {[%clk 0:00:07]} 37. f4 {[%clk 0:00:45]}  Bd8 {[%clk 0:00:04]} 38. Nb6 {[%clk 0:00:43]}  h5 {[%clk 0:00:04]} 39. gxh5 {[%clk 0:00:42]}  gxh5 {[%clk 0:00:05]} 40. Nc4 {[%clk 0:00:42]}  Kg7 {[%clk 0:00:03]} 41. Kh3 {[%clk 0:00:42]}  Kg6 {[%clk 0:00:03]} 42. Nd6 {[%clk 0:00:37]} 1-0


[Site "https://www.chess.com"]

[Event "Titled Tuesday Blitz March 15 Late 2022"]
[White "Winkels, Marcel"]
[Black "Magallanes, Rey Jomar"]
[WhiteFideId "1003887"]
[BlackFideId "5205948"]
[WhiteElo "1900"]
[BlackElo "2205"]
[Result "1-0"]
[Round "11"]
[TimeControl "180+1"]
[Date "2022.03.16"]
[WhiteClock "0:02:23"]
[BlackClock "0:02:27"]

1. b3 {[%clk 0:02:56]}  e6 {[%clk 0:02:59]} 2. Bb2 {[%clk 0:02:55]}  Nf6 {[%clk 0:02:52]} 3. Nf3 {[%clk 0:02:56]}  d5 {[%clk 0:02:50]} 4. g4 {[%clk 0:02:52]}  Nxg4 {[%clk 0:02:46]} 5. Rg1 {[%clk 0:02:52]}  Nf6 {[%clk 0:02:46]} 6. e3 {[%clk 0:02:47]}  Nc6 {[%clk 0:02:45]} 7. d3 {[%clk 0:02:45]}  b6 {[%clk 0:02:45]} 8. Nbd2 {[%clk 0:02:44]}  Bb7 {[%clk 0:02:46]} 9. Be2 {[%clk 0:02:40]}  Qd7 {[%clk 0:02:44]} 10. Ne5 {[%clk 0:02:39]}  Nxe5 {[%clk 0:02:44]} 11. Bxe5 {[%clk 0:02:38]}  O-O-O {[%clk 0:02:44]} 12. a4 {[%clk 0:02:35]}  a5 {[%clk 0:02:39]} 13. b4 {[%clk 0:02:30]}  Bxb4 {[%clk 0:02:36]} 14. Rxg7 {[%clk 0:02:29]}  Nh5 {[%clk 0:02:34]} 15. Bxh5 {[%clk 0:02:26]}  Bf8 {[%clk 0:02:27]} 16. Rxf7 {[%clk 0:02:23]} 1-0


[Site "https://www.chess.com"]

[Event "Titled Tuesday Blitz March 15 Late 2022"]
[White "Yang, Kaiqi"]
[Black "Aydin, Gulenay"]
[WhiteFideId "8604398"]
[BlackFideId "34557431"]
[WhiteElo "2373"]
[BlackElo "1429"]
[Result "1-0"]
[Round "11"]
[TimeControl "180+1"]
[Date "2022.03.16"]
[WhiteClock "0:00:12"]
[BlackClock "0:00:01"]

1. e4 {[%clk 0:03:00]}  c5 {[%clk 0:02:59]} 2. Nc3 {[%clk 0:02:59]}  d6 {[%clk 0:02:58]} 3. d4 {[%clk 0:02:59]}  cxd4 {[%clk 0:02:58]} 4. Qxd4 {[%clk 0:03:00]}  Nc6 {[%clk 0:02:56]} 5. Qd2 {[%clk 0:03:00]}  g6 {[%clk 0:02:54]} 6. b3 {[%clk 0:03:00]}  Bg7 {[%clk 0:02:55]} 7. Bb2 {[%clk 0:03:01]}  Nf6 {[%clk 0:02:55]} 8. O-O-O {[%clk 0:02:59]}  O-O {[%clk 0:02:56]} 9. f3 {[%clk 0:02:57]}  Bd7 {[%clk 0:02:47]} 10. h4 {[%clk 0:02:53]}  Qa5 {[%clk 0:02:44]} 11. h5 {[%clk 0:02:47]}  Nxh5 {[%clk 0:02:31]} 12. g4 {[%clk 0:02:47]}  Nf6 {[%clk 0:02:31]} 13. Kb1 {[%clk 0:02:44]}  Ne5 {[%clk 0:02:26]} 14. Nd5 {[%clk 0:02:32]}  Qxd2 {[%clk 0:02:17]} 15. Nxe7+ {[%clk 0:02:32]}  Kh8 {[%clk 0:02:18]} 16. Rxd2 {[%clk 0:02:33]}  Rfe8 {[%clk 0:02:08]} 17. Nd5 {[%clk 0:02:26]}  Nxd5 {[%clk 0:01:42]} 18. Rxd5 {[%clk 0:02:27]}  Bc6 {[%clk 0:01:29]} 19. Rxd6 {[%clk 0:02:20]}  Nxg4 {[%clk 0:01:26]} 20. Bxg7+ {[%clk 0:02:15]}  Kxg7 {[%clk 0:01:27]} 21. fxg4 {[%clk 0:02:04]}  Rxe4 {[%clk 0:01:27]} 22. Rd1 {[%clk 0:01:13]}  Rae8 {[%clk 0:01:01]} 23. Rh2 {[%clk 0:00:56]}  Rxg4 {[%clk 0:00:47]} 24. Bc4 {[%clk 0:00:55]}  b5 {[%clk 0:00:32]} 25. Bd3 {[%clk 0:00:54]}  h5 {[%clk 0:00:30]} 26. Ne2 {[%clk 0:00:49]}  h4 {[%clk 0:00:26]} 27. Kb2 {[%clk 0:00:33]}  h3 {[%clk 0:00:19]} 28. Rxh3 {[%clk 0:00:25]}  Rg2 {[%clk 0:00:15]} 29. Nd4 {[%clk 0:00:25]}  Bd7 {[%clk 0:00:12]} 30. Rf3 {[%clk 0:00:22]}  b4 {[%clk 0:00:11]} 31. Rdf1 {[%clk 0:00:21]}  Re7 {[%clk 0:00:10]} 32. R1f2 {[%clk 0:00:21]}  Rg4 {[%clk 0:00:10]} 33. Rf4 {[%clk 0:00:19]}  Rg5 {[%clk 0:00:09]} 34. Bc4 {[%clk 0:00:19]}  f5 {[%clk 0:00:08]} 35. a3 {[%clk 0:00:17]}  bxa3+ {[%clk 0:00:07]} 36. Kxa3 {[%clk 0:00:18]}  Rg3 {[%clk 0:00:07]} 37. Kb2 {[%clk 0:00:17]}  Rge3 {[%clk 0:00:08]} 38. R4f3 {[%clk 0:00:17]}  Kf6 {[%clk 0:00:06]} 39. Rxe3 {[%clk 0:00:16]}  Rxe3 {[%clk 0:00:07]} 40. Bb5 {[%clk 0:00:14]}  Bc8 {[%clk 0:00:06]} 41. Nc6 {[%clk 0:00:14]}  a6 {[%clk 0:00:06]} 42. Bd3 {[%clk 0:00:14]}  g5 {[%clk 0:00:04]} 43. Nd4 {[%clk 0:00:14]}  f4 {[%clk 0:00:05]} 44. Kc1 {[%clk 0:00:14]}  g4 {[%clk 0:00:04]} 45. Rxf4+ {[%clk 0:00:13]}  Ke5 {[%clk 0:00:05]} 46. Rf8 {[%clk 0:00:13]}  Bd7 {[%clk 0:00:02]} 47. Ne2 {[%clk 0:00:12]}  g3 {[%clk 0:00:01]} 48. Kd2 {[%clk 0:00:12]}  Rxd3+ {[%clk 0:00:01]} 49. cxd3 {[%clk 0:00:12]}  Bg4 {[%clk 0:00:01]} 50. Rg8 {[%clk 0:00:12]}  Kf5 {[%clk 0:00:01]} 51. Ke3 {[%clk 0:00:12]}  g2 {[%clk 0:00:01]} 52. Kf2 {[%clk 0:00:11]}  g1=Q+ {[%clk 0:00:02]} 53. Kxg1 {[%clk 0:00:11]}  Bxe2 {[%clk 0:00:03]} 54. d4 {[%clk 0:00:11]}  Ke4 {[%clk 0:00:03]} 55. Rd8 {[%clk 0:00:11]}  Bb5 {[%clk 0:00:03]} 56. Kf2 {[%clk 0:00:11]}  Bd3 {[%clk 0:00:03]} 57. Ke1 {[%clk 0:00:12]}  Bc2 {[%clk 0:00:04]} 58. Kd2 {[%clk 0:00:12]}  Bxb3 {[%clk 0:00:04]} 59. Kc3 {[%clk 0:00:13]}  Bd5 {[%clk 0:00:04]} 60. Rb8 {[%clk 0:00:13]}  Bc6 {[%clk 0:00:04]} 61. Rb6 {[%clk 0:00:13]}  Bb5 {[%clk 0:00:04]} 62. Rd6 {[%clk 0:00:13]}  Be2 {[%clk 0:00:02]} 63. Kb4 {[%clk 0:00:13]}  Bb5 {[%clk 0:00:02]} 64. Kc5 {[%clk 0:00:13]}  Kf5 {[%clk 0:00:03]} 65. Rd8 {[%clk 0:00:13]}  Ke6 {[%clk 0:00:04]} 66. d5+ {[%clk 0:00:13]}  Ke7 {[%clk 0:00:05]} 67. Ra8 {[%clk 0:00:13]}  Kd7 {[%clk 0:00:05]} 68. Ra7+ {[%clk 0:00:14]}  Kc8 {[%clk 0:00:03]} 69. Kd6 {[%clk 0:00:12]}  Bc4 {[%clk 0:00:02]} 70. Rh7 {[%clk 0:00:11]}  Bb5 {[%clk 0:00:01]} 71. Kc5 {[%clk 0:00:12]}  Kd8 {[%clk 0:00:01]} 72. Kd6 {[%clk 0:00:11]}  Kc8 {[%clk 0:00:01]} 73. Ke7 {[%clk 0:00:12]}  Kc7 {[%clk 0:00:01]} 74. d6+ {[%clk 0:00:12]} 1-0


[Site "https://www.chess.com"]

[Event "Titled Tuesday Blitz March 15 Late 2022"]
[White "Yoo, Christopher Woojin"]
[Black "Riehle, Marco"]
[WhiteFideId "30909694"]
[BlackFideId "12904392"]
[WhiteElo "2105"]
[BlackElo "2462"]
[Result "1-0"]
[Round "11"]
[TimeControl "180+1"]
[Date "2022.03.15"]
[WhiteClock "0:02:29"]
[BlackClock "0:02:18"]

1. e4 {[%clk 0:03:00]}  e5 {[%clk 0:02:59]} 2. Nf3 {[%clk 0:03:00]}  Nf6 {[%clk 0:02:59]} 3. d4 {[%clk 0:03:00]}  Nxe4 {[%clk 0:02:59]} 4. Bd3 {[%clk 0:03:01]}  Nc6 {[%clk 0:02:58]} 5. d5 {[%clk 0:02:51]}  Nf6 {[%clk 0:02:57]} 6. dxc6 {[%clk 0:02:49]}  e4 {[%clk 0:02:56]} 7. Bxe4 {[%clk 0:02:29]}  Nxe4 {[%clk 0:02:54]} 8. Qe2 {[%clk 0:02:30]}  d5 {[%clk 0:02:43]} 9. cxb7 {[%clk 0:02:28]}  Bxb7 {[%clk 0:02:41]} 10. Qb5+ {[%clk 0:02:29]}  c6 {[%clk 0:02:17]} 11. Qxb7 {[%clk 0:02:29]}  Bc5 {[%clk 0:02:18]} 1-0


[Site "https://www.chess.com"]